Cogmind - Beta 14 @@@ ROGUE MODE // 2024.10.02 @ 11:29:55 Player: Zane Result: Destroyed by Y-54 Guardian with Flak Gun Performance ------------- Evolutions (4) 2000 Regions Visited (9) 1800 Robots Destroyed (64) 320 Value Destroyed (1703) 1703 Prototype IDs (23) 460 Alien Tech Used (0) 0 Bonus (861) 861 TOTAL SCORE: 7144 Bonus ------- High Alert Combat Kills 101 Follower Combat Kills 569 Aligned with FarCom 300 Friendly Fire -109 Cogmind --------- Core Integrity 0/850 Matter 28/300 Energy 100/100 System Corruption 4% Temperature Hot (297) Movement Flying (26) Location -6/Factory Parts ------- > --- POWER (2) -------- Backup Power III > --- PROPULSION (4) --- Cesium-ion Thruster Cesium-ion Thruster Cesium-ion Thruster Cesium-ion Thruster > --- UTILITY (6) ------ Improved Terrain Scanner Launcher Guidance Computer > --- WEAPON (3) ------- (None) > --- INVENTORY (5) ---- Improved Ion Engine Light Nuclear Core Advanced Weight Redist. System Advanced Assault Cannon Fusion Bomb Launcher Peak State ------------ > --- POWER ------------ Backup Power III Improved Deuterium Engine > --- PROPULSION ------- Flying Fortress v7 > --- UTILITY ---------- Medium Storage Unit Improved Terrain Scanner Launcher Guidance Computer Layered Light Armor Plating Hacking Suite System Shield > --- WEAPON ----------- Heavy Laser Gauss Rifle Advanced Assault Cannon > --- INVENTORY -------- Improved Ion Engine Light Nuclear Core Antimatter Reactor Cesium-ion Thruster Cesium-ion Thruster Cesium-ion Thruster Cesium-ion Thruster Advanced Weight Redist. System Advanced Assault Cannon Fusion Bomb Launcher [Rating: 72] Favorites ----------- Power Ion Engine Engine Ion Engine Power Core Light Nuclear Core Reactor Antimatter Reactor Propulsion Aluminum Leg Treads Light Treads Leg Aluminum Leg Flight Unit Flying Fortress v7 Utility Terrain Scanner Device Terrain Scanner Storage High-capacity Storage Unit Processor Terrain Scan Processor Hackware System Shield Protection Propulsion Shielding Weapon Grenade Launcher Energy Gun EM Pulse Gun Energy Cannon Improved EM Pulse Cannon Ballistic Gun Assault Rifle Ballistic Cannon Advanced Assault Cannon Launcher Grenade Launcher Build | -11 -10 -10 -10 -9 -8 -7 -6 -6 -6 ------- Run | Yrd Mat Min Exi Min Mat Fac Fac Was Fac Slots Evolved 8 | . . . . . 4 2 2 . . Power 1 | . . . . . . 1 . . . Propulsion 2 | . . . . . 2 . . . . Utility 4 | . . . . . 2 1 1 . . Weapon 1 | . . . . . . . 1 . . Parts Attached 48 | 6 7 2 . 1 15 4 1 1 11 Power 7 | 1 2 . . . 2 . . 1 1 Engine 4 | 1 2 . . . . . . . 1 Core 2 | . . . . . 2 . . . . Reactor 1 | . . . . . . . . 1 . Propulsion 9 | 2 . 2 . . 1 . . . 4 Treads 2 | 2 . . . . . . . . . Leg 2 | . . 2 . . . . . . . Wheel . | . . . . . . . . . . Hover . | . . . . . . . . . . Flight 5 | . . . . . 1 . . . 4 Utility 15 | 1 2 . . . 6 4 . . 2 Device 5 | . 1 . . . 2 2 . . . Storage 3 | 1 1 . . . 1 . . . . Processor 3 | . . . . . 2 . . . 1 Hackware 2 | . . . . . . 1 . . 1 Protection 2 | . . . . . 1 1 . . . Artifact . | . . . . . . . . . . Weapon 17 | 2 3 . . 1 6 . 1 . 4 Energy Gun 6 | 1 1 . . 1 1 . . . 2 Energy Cannon 1 | . . . . . . . . . 1 Ballistic Gun 4 | 1 1 . . . 1 . . . 1 Ballistic Cannon 2 | . . . . . 1 . 1 . . Launcher 4 | . 1 . . . 3 . . . . Special Weapon . | . . . . . . . . . . Impact Weapon . | . . . . . . . . . . Slashing Weapon . | . . . . . . . . . . Piercing Weapon . | . . . . . . . . . . Special Melee Weapon . | . . . . . . . . . . Unidentified Prototypes . | . . . . . . . . . . Parts Lost 11 | . 2 1 . . . . . . 8 Power 1 | . . . . . . . . . 1 Propulsion 1 | . . 1 . . . . . . . Utility 3 | . . . . . . . . . 3 Weapon 6 | . 2 . . . . . . . 4 Highest Loss Streak 7 | . 1 1 . . . . . . 7 To Critical Strikes . | . . . . . . . . . . Average Slot Usage (%) 89 | . 95 99 100 100 70 69 66 71 69 Engine 11 | . 14 14 14 14 . . . 4 11 Core 1 | . . . . . 9 7 6 1 . Treads 9 | . 28 15 . . . . . . . Leg 10 | . . 12 28 28 . . . . . Flight 2 | . . . . . 9 7 6 6 6 Device 11 | . 10 14 14 14 9 8 6 6 6 Storage 11 | . 14 14 14 14 8 7 6 6 5 Hackware 1 | . . . . . . 5 6 6 7 Protection 3 | . . . . . 9 13 13 13 7 Energy Gun 3 | . 6 . . 12 5 . . . 4 Ballistic Gun 8 | . 14 14 14 1 1 . . . . Ballistic Cannon 2 | . . . . . 2 7 13 13 7 Launcher 10 | . 6 14 14 14 8 7 6 6 5 Peak Build Rating 72 | 6 7 8 11 13 51 55 60 67 72 Average Rating 23 | 3 6 7 9 12 47 54 59 65 64 On Entrance 27 | . 6 7 8 11 13 51 55 60 67 Naked Turns . | . . . . . . . . . . Heaviest Build 52 | 13 51 51 51 52 27 31 37 50 50 Greatest Support 50 | 40 40 40 20 20 50 50 50 50 50 Greatest Overweight (x) 13 | 2 1 2 2 2 . . . . 13 Average Overweight (x) . | . . 1 2 2 . . . . . Largest Inventory Capacity 20 | 8 20 20 20 20 20 10 10 10 10 Average Capacity 15 | 6 15 20 20 20 10 10 10 10 9 Most Carried 20 | 5 7 12 15 18 20 10 10 10 10 Average Carried 10 | 3 5 11 13 17 9 9 9 9 9 Final Capacity 20 | 8 20 20 20 20 10 10 10 10 5 Final Carried 18 | 3 7 11 15 18 10 10 10 10 5 Class Distribution -------------------- 63% | Mutant 24% | Scout 6% | Skirmisher 3% | Scavenger-Scout Dominant Class ---------------- Mutant | -10/Materials Mutant | -10/Mines Mutant | -10/Exiles Skirmisher | -9/Mines Scout | -8/Materials Scout | -7/Factory Scout | -6/Factory Scout | -6/Waste Scout | -6/Factory Resources | -11 -10 -10 -10 -9 -8 -7 -6 -6 -6 ----------- Run | Yrd Mat Min Exi Min Mat Fac Fac Was Fac Matter Collected 1301 | 204 249 87 . 39 206 . 48 105 363 Remotely . | . . . . . . . . . . Salvage Created 1790 | . 697 88 . 17 522 . 36 . 430 Parts 137 | . 51 16 . 4 40 . 3 . 23 Haulers Intercepted . | . . . . . . . . . . Recyclers Shooed 3 | . 1 . . . . . . . 2 Parts Field Recycled . | . . . . . . . . . . Retrieved Matter . | . . . . . . . . . . Parts Self-Destructed . | . . . . . . . . . . Prevented . | . . . . . . . . . . Kills | -11 -10 -10 -10 -9 -8 -7 -6 -6 -6 ------- Run | Yrd Mat Min Exi Min Mat Fac Fac Was Fac Combat Hostiles Destroyed 46 | . 15 6 . 2 13 . 1 . 9 Guns 20 | . 14 1 . . 4 . . . 1 Cannons 6 | . . . . . 1 . 1 . 4 AOE 20 | . 1 5 . 2 8 . . . 4 Classes Destroyed 11 | . 6 . . . 3 . . . 2 Worker 4 | . 1 . . . . . . . 3 Builder 4 | . 3 . . . 1 . . . . Tunneler 1 | . . . . . 1 . . . . Recycler 6 | . 2 . . . 4 . . . . Mechanic 1 | . 1 . . . . . . . . Watcher 2 | . . . . . . . . . 2 Swarmer 22 | . 8 4 . 2 8 . . . . Grunt 16 | . 7 2 . . . . 1 . 6 Sentry 3 | . . . . . 3 . . . . Hunter 4 | . . . . . 2 . . . 2 Programmer 1 | . . . . . . . . . 1 Best Kill Streak 8 | . 4 3 . 2 8 . 1 . 6 Combat Bots Only 8 | . 4 3 . 2 8 . 1 . 4 Max Kills in Single Turn 6 | . 2 3 . 1 6 . 1 . 3 Gunslinging . | . . . . . . . . . . Exploded 6 | . 1 3 . 1 6 . . . 2 Melee . | . . . . . . . . . . Uniques/NPCs Destroyed . | . . . . . . . . . . Combat | -11 -10 -10 -10 -9 -8 -7 -6 -6 -6 -------- Run | Yrd Mat Min Exi Min Mat Fac Fac Was Fac Hostile Shots Fired 263 | . 87 17 . 3 32 . 1 . 123 Missed 97 | . 30 6 . . 15 . 1 . 45 Damage Taken 3009 | . 563 98 . 24 245 . . 16 2063 Core 950 | . 47 32 . 6 15 . . 8 842 Absorbed by Shields . | . . . . . . . . . . Redirected to Shielding 83 | . . . . . 25 . . . 58 Regen/Repaired (Parts) 174 | . . . . . 105 . . . 69 Core Remaining (%) 90 | 100 . . . 66 97 100 . . . Volleys Fired 172 | . 86 9 . 3 24 . 2 2 46 Largest 3 | . 2 2 . 2 2 . 2 3 3 Hottest 150 | . 60 50 . 50 83 . 96 129 150 Shots Fired 275 | . 133 13 . 5 29 . 4 6 85 Gun 188 | . 131 9 . 3 20 . . . 25 Cannon 61 | . . . . . 4 . 4 4 49 Launcher 26 | . 2 4 . 2 5 . . 2 11 Special . | . . . . . . . . . . Kinetic 166 | . 86 9 . 3 4 . 4 4 56 Thermal 26 | . . . . . 8 . . . 18 Explosive 26 | . 2 4 . 2 5 . . 2 11 Electromagnetic 57 | . 45 . . . 12 . . . . Robot Hit Streak 7 | . 7 3 . . 5 . 4 5 7 Robot Miss Streak 10 | . 4 4 . 1 2 . . 1 10 Penetration Max 1 | . . . . . . . . . 1 Secondary Targets 3 | . 3 . . . . . . . . Max Gunslinging Chain 1 | . 1 . . . . . . . . Shots Hit Robots 144 | . 71 6 . . 15 . 4 5 43 Core Hits 117 | . 34 12 . 2 25 . 2 1 41 Critical Kills . | . . . . . . . . . . Critical Parts Destroyed 2 | . 2 . . . . . . . . Critical Strikes 6 | . 2 . . . . . . . 4 Destroy 2 | . 2 . . . . . . . . Blast 4 | . . . . . . . . . 4 Melee Attacks . | . . . . . . . . . . Impact . | . . . . . . . . . . Slashing . | . . . . . . . . . . Piercing . | . . . . . . . . . . Sneak Attacks . | . . . . . . . . . . Combat Hostiles . | . . . . . . . . . . Follow-up Attacks . | . . . . . . . . . . Damage Inflicted 5065 | . 888 396 . 169 1079 . 118 259 2156 Guns 1306 | . 742 69 . . 235 . . . 260 Cannons 1053 | . . . . . 25 . 118 79 831 Explosions 2678 | . 126 320 . 168 819 . . 180 1065 Melee . | . . . . . . . . . . Ramming 28 | . 20 7 . 1 . . . . . Kinetic 1627 | . 423 69 . . 25 . 118 79 913 Thermal 426 | . . . . . 248 . . . 178 Explosive 2453 | . 73 320 . 168 647 . . 180 1065 Electromagnetic 531 | . 372 . . . 159 . . . . Impact . | . . . . . . . . . . Slashing . | . . . . . . . . . . Piercing . | . . . . . . . . . . Highest Corruption 4 | . . . . . . . . . 4 Average Corruption 2 | . . . . . . . . . 2 Corruption Purged . | . . . . . . . . . . Corruption Blocked . | . . . . . . . . . . Effects 4 | . . . . . . . . . 4 Message Errors 1 | . . . . . . . . . 1 Matter Fused 2 | . . . . . . . . . 2 Data Loss (minor) 1 | . . . . . . . . . 1 Overload Shots . | . . . . . . . . . . Overflow Damage 68 | . . . . . 26 . . . 42 Projectiles 35 | . . . . . . . . . 35 Explosions 33 | . . . . . 26 . . . 7 Melee . | . . . . . . . . . . Knockbacks 11 | . . . . . . . 1 . 10 Impact . | . . . . . . . . . . Kinetic 11 | . . . . . . . 1 . 10 Secondary . | . . . . . . . . . . Self-Inflicted Damage 53 | . 8 13 . . . . . . 32 Shots 3 | . 1 1 . . . . . . 1 Rammed 5 | . 4 1 . . . . . . . Targets Rammed 7 | . 4 1 . 2 . . . . . Kicked 2 | . . . . 2 . . . . . Crushed . | . . . . . . . . . . Highest Temperature 846 | . 46 . . . 268 . 84 150 846 Average Temperature 170 | . 16 . . . 82 . 45 80 279 Received Heat Transfer 667 | . 204 . . . 36 . . . 427 Effects 56 | . . . . . 2 . . . 54 Shutdowns 16 | . . . . . . . . . 16 Energy Bleed 5 | . . . . . . . . . 5 Interference 9 | . . . . . 2 . . . 7 Matter Decay 6 | . . . . . . . . . 6 Short Circuit 5 | . . . . . . . . . 5 Damage (minor) 3 | . . . . . . . . . 3 Damage (major) 6 | . . . . . . . . . 6 Damage (core) 6 | . . . . . . . . . 6 Siege Activations . | . . . . . . . . . . Robots Corrupted . | . . . . . . . . . . Combat Hostiles . | . . . . . . . . . . Parts Fried 1 | . . . . . 1 . . . . Impact Corruptions . | . . . . . . . . . . Robots Melted . | . . . . . . . . . . Combat Hostiles . | . . . . . . . . . . Parts Melted 2 | . . . . . 1 . . . 1 Heat Transferred 668 | . . . . . 335 . . . 333 Parts Sabotaged . | . . . . . . . . . . Parts Stolen . | . . . . . . . . . . Parts Stripped . | . . . . . . . . . . Power Chain Reactions 1 | . . . . . 1 . . . . Alert | -11 -10 -10 -10 -9 -8 -7 -6 -6 -6 ------- Run | Yrd Mat Min Exi Min Mat Fac Fac Was Fac Peak Influence 1048 | . 235 196 . 92 324 171 20 21 1048 Initial 147 | . . 18 . . . 147 . 7 14 Average 148 | . 89 44 . 65 153 97 11 16 611 Maximum Alert Level 3 | . 1 . . . 1 . . . 3 Low Security (%) 84 | 100 94 100 . 100 69 100 100 100 19 Level 1 5 | . 5 . . . 30 . . . 4 Level 2 4 | . . . . . . . . . 34 Level 3 5 | . . . . . . . . . 40 Level 4 . | . . . . . . . . . . Level 5 . | . . . . . . . . . . High Security . | . . . . . . . . . . Max Security . | . . . . . . . . . . Squads Dispatched 22 | . 4 . . . 2 . . . 16 Investigation 1 | . 1 . . . . . . . . Extermination 2 | . . . . . . . . . 2 Reinforcement 15 | . 3 . . . 2 . . . 10 Assault 1 | . . . . . . . . . 1 Garrison 3 | . . . . . . . . . 3 Intercept . | . . . . . . . . . . Searches Triggered . | . . . . . . . . . . Construction Impeded 2 | . . . . . . . . . 2 Haulers Reinforced 1 | . . . . . . . . . 1 Active Scanning Responses . | . . . . . . . . . . Cargo Convoy Interrupts . | . . . . . . . . . . Stealth | -11 -10 -10 -10 -9 -8 -7 -6 -6 -6 --------- Run | Yrd Mat Min Exi Min Mat Fac Fac Was Fac Distress Signals 8 | . 3 . . . 2 . . . 3 Communications Jammed . | . . . . . . . . . . Distress Signals . | . . . . . . . . . . Times Spotted 91 | . 33 9 . 4 10 . 1 1 33 Peak Tracking Total 6 | . 6 3 . 4 4 . 1 1 5 Tactical Retreats 4 | . 2 . . . 1 . . . 1 Traps | -11 -10 -10 -10 -9 -8 -7 -6 -6 -6 ------- Run | Yrd Mat Min Exi Min Mat Fac Fac Was Fac Traps Triggered 3 | . 1 . . . . . 1 . 1 Indirectly . | . . . . . . . . . . Trap Hack Attempts . | . . . . . . . . . . Triggered . | . . . . . . . . . . Disarmed . | . . . . . . . . . . Reprogrammed . | . . . . . . . . . . Reused . | . . . . . . . . . . Traps Extracted . | . . . . . . . . . . Installed . | . . . . . . . . . . Triggered . | . . . . . . . . . . Most Traps Carried 4 | . . 4 4 4 4 . . . . Machines | -11 -10 -10 -10 -9 -8 -7 -6 -6 -6 ---------- Run | Yrd Mat Min Exi Min Mat Fac Fac Was Fac Machines Disabled 23 | . 3 2 . . 1 . . . 17 Max in Single Turn 4 | . 3 1 . . 1 . . . 4 Machines Repaired . | . . . . . . . . . . Machines Dismantled . | . . . . . . . . . . Machines Sabotaged . | . . . . . . . . . . Overloaded Fab Kills . | . . . . . . . . . . Hacking | -11 -10 -10 -10 -9 -8 -7 -6 -6 -6 --------- Run | Yrd Mat Min Exi Min Mat Fac Fac Was Fac Machines Accessed 13 | . 3 . 5 . 1 1 . . 3 Terminals 5 | . 3 . . . . . . . 2 Fabricators . | . . . . . . . . . . Repair Stations 1 | . . . . . 1 . . . . Recycling Units . | . . . . . . . . . . Scanalyzers 1 | . . . . . . 1 . . . Garrison Access 1 | . . . . . . . . . 1 Total Hacks 67 | . 6 . 50 . 4 2 . . 5 Successful 61 | . 4 . 50 . 4 2 . . 1 Failed 6 | . 2 . . . . . . . 4 Catastrophic 1 | . . . . . . . . . 1 Database Lockouts . | . . . . . . . . . . Manual 4 | . 2 . 2 . . . . . . Terminals 10 | . 6 . . . . . . . 4 Fabricators . | . . . . . . . . . . Repair Stations 4 | . . . . . 4 . . . . Recycling Units . | . . . . . . . . . . Scanalyzers 2 | . . . . . . 2 . . . Garrison Access 1 | . . . . . . . . . 1 Terminal Hacks 55 | . 4 . 50 . . . . . 1 Record 50 | . . . 49 . . . . . 1 Branch Access Points 1 | . 1 . . . . . . . . Locate Traps 2 | . 2 . . . . . . . . Hauler Manifests 1 | . 1 . . . . . . . . Derelict Proto ID Bank 1 | . . . 1 . . . . . . Fabricator Hacks . | . . . . . . . . . . Repair Station Hacks 4 | . . . . . 4 . . . . Scan Component 2 | . . . . . 2 . . . . Repair 2 | . . . . . 2 . . . . Recycling Unit Hacks . | . . . . . . . . . . Scanalyzer 2 | . . . . . . 2 . . . Insert Component 1 | . . . . . . 1 . . . Analyze 1 | . . . . . . 1 . . . Garrison Access Hacks . | . . . . . . . . . . Unauthorized Hacks . | . . . . . . . . . . Terminals . | . . . . . . . . . . Fabricators . | . . . . . . . . . . Repair Stations . | . . . . . . . . . . Recycling Units . | . . . . . . . . . . Scanalyzers . | . . . . . . . . . . Garrison Access . | . . . . . . . . . . Data Cores Recovered . | . . . . . . . . . . Used . | . . . . . . . . . . Hacking Detections 6 | . 3 . . . . 1 . . 2 Full Trace Events . | . . . . . . . . . . Feedback Events . | . . . . . . . . . . Feedback Blocked . | . . . . . . . . . . Robot Schematics Acquired . | . . . . . . . . . . Robots Built . | . . . . . . . . . . Authchips . | . . . . . . . . . . Time . | . . . . . . . . . . Total Robot Build Rating . | . . . . . . . . . . Part Schematics Acquired 1 | . . . . . . 1 . . . Parts Built . | . . . . . . . . . . Authchips . | . . . . . . . . . . Time . | . . . . . . . . . . Total Part Build Rating . | . . . . . . . . . . Parts Repaired 2 | . . . . . 2 . . . . Time 64 | . . . . . 64 . . . . Parts Recycled . | . . . . . . . . . . Recycled Matter . | . . . . . . . . . . Retrieved Matter . | . . . . . . . . . . Retrieved Components . | . . . . . . . . . . Parts Scanalyzed 1 | . . . . . . 1 . . . Part Schematics Acquired 1 | . . . . . . 1 . . . Parts Damaged . | . . . . . . . . . . Bothacking | -11 -10 -10 -10 -9 -8 -7 -6 -6 -6 ------------ Run | Yrd Mat Min Exi Min Mat Fac Fac Was Fac Used RIF Installer . | . . . . . . . . . . Robots Hacked . | . . . . . . . . . . Non-combat . | . . . . . . . . . . Combat . | . . . . . . . . . . Robot Hacks Applied . | . . . . . . . . . . Relay Couplers Released . | . . . . . . . . . . Fabnet Peak Effective % . | . . . . . . . . . . Robots Rewired . | . . . . . . . . . . Allies Hacked 1 | . . . . . . . . . 1 Hacks Repelled . | . . . . . . . . . . Allies | -11 -10 -10 -10 -9 -8 -7 -6 -6 -6 -------- Run | Yrd Mat Min Exi Min Mat Fac Fac Was Fac Total Allies 25 | . . 5 . . . . . 20 . Largest Group 20 | . . 5 5 3 2 . . 20 19 Highest-Rated Group 775 | . . 78 78 40 24 . . 775 750 Highest-Rated Ally 50 | . . 31 31 16 16 . . 50 50 Total Orders . | . . . . . . . . . . Ally Attacks 156 | . . 11 . 4 3 . . 9 129 Total Damage 4475 | . . 127 . 39 28 . . 362 3919 Kills 29 | . . 4 . 1 . . . 2 22 Allies Corrupted . | . . . . . . . . . . Allies Melted . | . . . . . . . . . . Intel | -11 -10 -10 -10 -9 -8 -7 -6 -6 -6 ------- Run | Yrd Mat Min Exi Min Mat Fac Fac Was Fac Robot Analysis Total . | . . . . . . . . . . Derelict Logs Recovered 2 | . . 1 . 1 . . . . . Drone Launches . | . . . . . . . . . . Drone Recoveries . | . . . . . . . . . . Exploration | -11 -10 -10 -10 -9 -8 -7 -6 -6 -6 ------------- Run | Yrd Mat Min Exi Min Mat Fac Fac Was Fac Turns Passed 7471 | 61 1624 1415 1609 521 556 619 146 144 776 Spaces Moved 4221 | 40 604 555 618 193 508 751 123 120 709 Core 21 | 20 . . . . . . . . 1 Treads 947 | 20 604 323 . . . . . . . Legs 1043 | . . 232 618 193 . . . . . Wheels . | . . . . . . . . . . Hover . | . . . . . . . . . . Flight 2210 | . . . . . 508 751 123 120 708 Fastest Speed 26 | 50 160 240 260 260 50 50 50 50 26 Average Speed 139 | 121 207 248 260 260 50 50 50 50 50 Slowest Speed 700 | 160 240 320 260 260 50 50 50 50 700 Overloaded Moves . | . . . . . . . . . . Propulsion Burnouts . | . . . . . . . . . . Robots Hopped 16 | . . . . . 6 1 . . 9 Cave-ins Triggered . | . . . . . . . . . . Exploration Rate (%) 47 | 4 92 98 72 39 40 14 4 83 27 Regions Visited 9 Branch Regions 3 Pre-discovered Areas 3 | . . 2 1 . . . . . . Known Exits Taken 1 | . 1 . . . . . . . . Unknown Exits Taken 6 | 1 . 1 1 1 1 1 . . . Scrap Searched 2 | . . 1 . 1 . . . . . Spaces Dug . | . . . . . . . . . . Terrain Destroyed 227 | . 21 30 . 20 46 . . 15 95 Melee . | . . . . . . . . . . Projectile 13 | . . . . . 3 . . 1 9 AOE 214 | . 21 30 . 20 43 . . 14 86 Terrain Rammed . | . . . . . . . . . . Walls Destroyed . | . . . . . . . . . . Machines Disabled . | . . . . . . . . . . Actions | -11 -10 -10 -10 -9 -8 -7 -6 -6 -6 --------- Run | Yrd Mat Min Exi Min Mat Fac Fac Was Fac Total 5519 | 52 854 575 621 205 780 992 203 199 1038 Wait 1020 | . 141 4 3 4 209 236 76 74 273 Move 4181 | 39 603 554 617 192 495 748 123 119 691 Hop 16 | . . . . . 6 1 . . 9 Pick Up 40 | 7 10 5 1 3 10 1 1 1 1 Fast Attach 15 | 2 . . . . 5 2 . 1 5 Attach 18 | 4 3 1 . . 4 1 1 . 4 Detach 2 | . . . . . 2 . . . . Swap 15 | . 4 1 . 1 6 1 . . 2 Drop 33 | . 3 . . . 19 2 . 2 7 Fire 172 | . 86 9 . 3 24 . 2 2 46 Melee . | . . . . . . . . . . Ram . | . . . . . . . . . . Kick 2 | . . . . 2 . . . . . Crush 5 | . 4 1 . . . . . . . Escape Stasis . | . . . . . . . . . . Rewire . | . . . . . . . . . . Trap . | . . . . . . . . . . Miscellaneous . | . . . . . . . . . . Route ------- -11/Scrapyard -10/Materials (discovered 3 exits: [*Mat x2] / *Min) -10/Mines (discovered 3 exits: [*Mat x2] / *Exi) -10/Exiles (discovered 2 exits: [*Min x2]) -9/Mines -8/Materials -7/Factory -6/Factory -6/Waste -6/Factory (discovered 1 exit: [*Fac]) History --------- Turn | Location | Event 8 | -11/Scrapyard | Discovered new exit (range 15) 62 | -11/Scrapyard | Entered Materials 309 | -10/Materials | Build established: Mutant 399 | -10/Materials | Discovered new exit (range 15) 647 | -10/Materials | Discovered new exit (range 9) 918 | -10/Materials | Discovered new exit (range 8) 1158 | -10/Materials | Identified exit to Mines 1686 | -10/Materials | Entered Mines 1715 | -10/Mines | Learned location of Zion (-6) 1753 | -10/Mines | Found a hidden stash of uninstalled traps 1888 | -10/Mines | Learned location of Storage (-8) 1928 | -10/Mines | Discovered new exit (range 11) 1959 | -10/Mines | Assisted by bots powering up and referring to "LRC-V3" 2250 | -10/Mines | Discovered new exit (range 7) 3084 | -10/Mines | Deemed a non-threat by the Exiles lab entrance 3084 | -10/Mines | Discovered new exit (range 5) 3101 | -10/Mines | Entered Exiles 3101 | -10/Exiles | Accompanied by 5 allies 3131 | -10/Exiles | Led the pair of lost Derelicts to a safe place 3175 | -10/Exiles | Met 8R-AWN 3234 | -10/Exiles | Met EX-HEX 3320 | -10/Exiles | Met EX-BIN 3370 | -10/Exiles | Aligned with FarCom system 3372 | -10/Exiles | Given EX-Vault access code 3453 | -10/Exiles | Opened EX-Vault 3549 | -10/Exiles | Warned to stay clear of 0b10 Research branches 3650 | -10/Exiles | Found Flying Fortress v7 3789 | -10/Exiles | Met EX-DEC 4083 | -10/Exiles | Discovered new exit (range 12) 4382 | -10/Exiles | Discovered new exit (range 14) 4710 | -10/Exiles | Left Exiles lab with Flying Fortress v7 4710 | -10/Exiles | Entered Mines 4710 | -9/Mines | Accompanied by 3 allies 4722 | -9/Mines | Met a Derelict bent on vengeance 4853 | -9/Mines | Discovered new exit (range 15) 4971 | -9/Mines | Learned Materials stockpile data 5004 | -9/Mines | Build established: Skirmisher 5231 | -9/Mines | Entered Materials 5231 | -8/Materials | Accompanied by 2 allies 5231 | -8/Materials | Evolved 4 slots: Propulsion x2, Utility x2 5512 | -8/Materials | Repaired Rocket Launcher 5584 | -8/Materials | Repaired Rocket Launcher 5752 | -8/Materials | Destroyed 8 combat bots 5776 | -8/Materials | Discovered new exit (range 3) 5787 | -8/Materials | Entered Factory 5787 | -7/Factory | Evolved 2 slots: Power x1, Utility x1 5930 | -7/Factory | Build established: Scout 6354 | -7/Factory | Discovered new exit (range 15) 6406 | -7/Factory | Entered another Factory area 6406 | -6/Factory | Evolved 2 slots: Utility x1, Weapon x1 6552 | -6/Factory | Sucked down chute 6552 | -6/Factory | Entered Waste 6553 | -6/Waste | Joined by Warlord forces that had cleared the area 6652 | -6/Waste | A Compactor rumbled back to life 6652 | -6/Waste | Spotted C-40 Crusher 6655 | -6/Waste | Allies destroyed C-40 Crusher 6672 | -6/Waste | Discovered new exit (range 13) 6676 | -6/Waste | Found Fusion Bomb Launcher 6696 | -6/Waste | Entered Factory 6696 | -6/Factory | Accompanied by 19 allies 6799 | -6/Factory | Garrison activated, responded to threat 6861 | -6/Factory | Lost 9 allies 7046 | -6/Factory | First assault squad dispatched 7145 | -6/Factory | Lost 4 allies 7329 | -6/Factory | Lost 3 allies 7445 | -6/Factory | Core integrity fell below 50% 7447 | -6/Factory | Core integrity fell below 20% 7471 | -6/Factory | Discovered new exit (range 15) 7472 | -6/Factory | Destroyed by Y-54 Guardian with Flak Gun Last Messages --------------- Dropped Broken Flying Fortress v7. K-01 Serf collects debris. Broken Hvy. Laser destroyed. R-10 Processor collects Broken Flying Fortress v7. U-05 Engineer lays Concrete. Overheating: Energy bleed (-56). Broken Adv. Assault Cannon destroyed. U-05 Engineer lays Concrete. Discarded System Shield. K-01 Serf collects debris. U-05 Engineer lays Concrete. Dropped Broken Antimatter Reactor. R-10 Processor collects Broken Antimatter Reactor. Dropped Med. Storage Unit. U-05 Engineer lays Concrete. The unstable cave ceiling collapses. EXIT=FOUND Imp. Deuterium Engine destroyed. Map ----- +----------------------------------------------------+ | ???# """ """ # # ?????????? | | ???# # # """ ?????????? | | ???# # # """ ????????? | | ???# """"T"""" " + " "" #??????? | | ???# """"""""""" # # #??????? | | ?????################# # /##########??????? | | ???????????????#?##"## #??????? | | ???????????????? # """ """ #??????? | | ??????????????????" " # % """ """ #??????? | | ??????????????????? ?# # """ """ #??????? | | ?????????????????????# #??????? | | ??????????????????"??# """ """ #??????? | | ??????????????????"??+ g """ """ #??????? | | ????????????????? ?? # """ """ #??????? | | ????????? ???????????# #??????? | | ?????? ##???"????????# #??????? | | ????????????? ???????# # ! #??????? | | ???????????????????? # # #??#???? | | ?????????????????????# ##############??????? | | ?????????????????????# R# #??????? | | ?????????????????????# # #?#????? | | ?????????????????????# + #??????? | | ?????????????????????# # #??????? | | ?????????????????????# # #??????? | | ?????????????????????# # #??????? | | ?????????????????????# @ #? #??????? | | ?????????????? #?? #??????? | | ?????????? k #?? #??????? | | ??????????? #??? ##?????? | | ??????????? Y #??? ???????? | | ???????????? #???? ???????? | | ???????????? #????#######????????? | | ???????????? #???????????????????? | | ????????????? ##########???????????????????? | | ????????????? ##?????????????????????????????? | | ?????????????? ???????????????????????????????? | | ?????????????? ????????????????????????????????? | | ?????????????????????????????????????????????????? | | ?????????????????????????????????????????????????? | | ?????????????????????????????????????????????????? | | ?????????????????????????????????????????????????? | | ?????????????????????????????????????????????????? | | ?????????????????????????????????????????????????? | | ?????????????????????????????????????????????????? | | ?????????????????????????????????????????????????? | | ?????????????????????????????????????????????????? | | ?????????????????????????????????????????????????? | | ?????????????????????????????????????????????????? | | ?????????????????????????????????????????????????? | | ?????????????????????????????????????????????????? | +----------------------------------------------------+ Best States ------------- Heat Dissipation 37 Energy Generation 27 Energy Capacity 325 Matter Stores 300 Matter Capacity 300 Sight Range 16 Terrain Scan Range 16 Terrain Scan Density 110 Armor Coverage 150 Propulsion Shielding 33 Evasion (%) 60 Launcher Accuracy 20 Recoil Reduction 4 Offensive Hacking 10 Defensive Hacking 10 Item Schematics ----------------- Imp. Deuterium Engine | -7/Factory | Scanalyzed Robot Schematics ------------------ None Fabricated ------------ Nothing Alien Tech Used ----------------- None Achievements -------------- Omniscient Cartographer Quick And Dirty We Are Legion Challenges ------------ None Game ------ Seed RagnarokWeightDetonator Manual? 0 Play Time 01:31:36 Cumulative 7.1 hours Start 2024.10.02 @ 09:36:10 End 2024.10.02 @ 11:29:55 Sessions 1 Manual Loads 0 Difficulty Rogue Special Mode None Game No. 7 Rogue 7 Adventurer 0 Explorer 0 Win Type - Total 0 Types 0/0/0/0/0/0/0/0/0 Lore% 10 Gallery% 13 Achievement% 15 Wizard Run 0 Options --------- Layout 1 ASCII 0 Keyboard 0 Movement Mouse Keybinds 0 Fullscreen 1 Font 24/Smallcaps Map View 50x35 Zoom Use 0% Tactical HUD 0 Map Filters NONE Filters NONE Steam 1 RUN: 27444228-5187-467b-a030-781bdfc6c5f0